bitfinex/quotes_BTCUSD_20240906
["timestamp","ask_amount","ask_price","bid_price","bid_amount"]
[1725655404590,0.44229106,53518.0,53511.0,0.3611]
[1725655404849,0.00158708,53519.0,53511.0,0.3611]
[1725655404850,3.407745,53517.0,53511.0,0.3611]
[1725655405087,3.407745,53518.0,53511.0,0.3611]
[1725655405327,3.407745,53518.0,53512.0,0.001622]
[1725655405794,0.00158708,53519.0,53512.0,0.001622]
[1725655405795,0.00258708,53519.0,53513.0,0.1905]
[1725655406045,0.00058708,53519.0,53514.0,0.00373686]
[1725655406296,0.00058708,53519.0,53514.0,0.05569589]
[1725655406297,0.02927666,53518.0,53514.0,0.05569589]
[1725655406548,0.02927666,53518.0,53513.0,0.1905]
[1725655406549,0.03827666,53518.0,53513.0,0.1905]
[1725655407053,0.03827666,53518.0,53514.0,0.0037369]
[1725655407304,0.009,53518.0,53514.0,0.0037369]
[1725655407547,0.00358708,53519.0,53513.0,0.1905]
[1725655407548,0.00058708,53519.0,53513.0,0.1905]
[1725655408048,0.00058708,53519.0,53512.0,0.001622]
[1725655408313,3.407745,53518.0,53512.0,0.001622]
[1725655408570,2.5630719,53518.0,53512.0,0.001622]
[1725655408835,0.1,53517.0,53512.0,0.001622]
[1725655409128,0.0550719,53514.0,53512.0,0.001622]
[1725655409326,0.0550719,53516.0,53512.0,0.001622]
[1725655409553,1.672,53515.0,53512.0,0.001622]
[1725655409777,0.1550719,53514.0,53512.0,0.001622]
[1725655410493,3.407745,53513.0,53512.0,0.002622]
[1725655410732,2.74913118,53513.0,53512.0,0.0008119]
[1725655410989,1.70413118,53513.0,53512.0,0.0008119]
[1725655411218,1.70413118,53513.0,53499.0,0.3283]
[1725655411483,0.05519688,53508.0,53501.0,0.55430836]
[1725655411780,0.67613118,53512.0,53499.0,0.3283]
[1725655411781,0.05519688,53509.0,53499.0,0.3283]
[1725655412280,0.11014381,53513.0,53500.0,0.03283]
[1725655412281,0.05519688,53513.0,53500.0,0.03283]
[1725655412524,0.08279533,53514.0,53500.0,0.03283]
[1725655412525,0.05519688,53510.0,53500.0,0.03283]
[1725655413253,0.05519688,53511.0,53501.0,0.35853761]
[1725655413502,0.1,53512.0,53501.0,0.3548]
[1725655413749,0.05919688,53513.0,53501.0,0.3548]
[1725655414003,0.05519688,53512.0,53501.0,0.3548]
[1725655414501,0.05519688,53509.0,53501.0,0.3548]
[1725655414751,0.05519688,53509.0,53495.0,0.3269]
[1725655414752,0.05519688,53503.0,53495.0,0.3269]
[1725655415003,0.05524498,53502.0,53495.0,0.3269]
[1725655415264,0.08279533,53503.0,53495.0,0.3269]
[1725655415265,0.05524498,53503.0,53495.0,0.3269]
[1725655415507,0.05523357,53499.0,53495.0,0.3269]
[1725655415733,0.05523357,53500.0,53495.0,0.3269]
[1725655416216,0.15523357,53500.0,53495.0,0.3269]
[1725655416443,0.1,53500.0,53495.0,0.35959]
[1725655416683,0.1,53500.0,53495.0,0.3269]
[1725655416921,0.014,53499.0,53495.0,0.3279]
[1725655417153,0.1,53500.0,53496.0,0.1968]
[1725655417383,0.11046714,53511.0,53496.0,0.1968]
[1725655417384,0.05523357,53506.0,53496.0,0.1968]
[1725655417615,0.05523357,53505.0,53496.0,0.1968]
[1725655417841,0.05523357,53506.0,53496.0,0.1968]
[1725655418296,0.05423357,53506.0,53496.0,0.1968]
[1725655418524,0.05423357,53506.0,53497.0,0.40447]
[1725655418761,0.18285035,53508.0,53497.0,0.40820786]
[1725655419022,0.11046714,53510.0,53497.0,0.40820786]
[1725655419023,0.08285035,53509.0,53497.0,0.40820786]
[1725655419257,0.1,53510.0,53498.0,0.35573769]
[1725655419258,0.004,53506.0,53498.0,0.35573769]
[1725655419521,0.004,53506.0,53498.0,0.352]
[1725655419756,0.004,53506.0,53490.0,0.352]
[1725655419757,1.56365035,53505.0,53490.0,0.352]
[1725655419995,0.11046714,53506.0,53490.0,0.352]
[1725655419996,0.0830923,53497.0,53492.0,0.55430836]
[1725655420230,0.0830923,53497.0,53493.0,0.00373846]
[1725655420480,0.41835155,53500.0,53492.0,0.11047304]
[1725655420481,0.00836429,53496.0,53492.0,0.11047304]
[1725655420746,0.00836429,53496.0,53490.0,0.352]
[1725655420987,0.00849675,53495.0,53490.0,0.352]
[1725655421470,0.1,53498.0,53490.0,0.352]
[1725655421731,0.00849586,53494.0,53492.0,0.352]
[1725655421983,0.00849852,53497.0,53492.0,0.352]
[1725655422211,0.08312222,53503.0,53493.0,0.0353622]
[1725655422442,0.08312222,53502.0,53493.0,0.0353622]
[1725655422670,0.08312222,53504.0,53493.0,0.0353622]
[1725655422898,0.001,53498.0,53493.0,0.0353622]
[1725655423154,0.001,53498.0,53495.0,0.352]
[1725655423384,0.001,53498.0,53496.0,0.03911003]
[1725655423608,0.08312222,53507.0,53497.0,0.1888]
[1725655424098,0.08312222,53507.0,53498.0,0.3603]
[1725655424337,0.1,53508.0,53499.0,0.00373774]
[1725655424596,0.18320231,53511.0,53499.0,0.3603]
[1725655424846,0.666,53510.0,53499.0,0.3603]
[1725655425116,0.08320231,53508.0,53499.0,0.3603]
[1725655425368,0.1,53509.0,53490.0,0.3603]
[1725655425369,0.08320231,53504.0,53490.0,0.3603]
[1725655425633,0.1,53509.0,53490.0,0.3603]
[1725655425634,0.0831762,53497.0,53490.0,0.3603]
[1725655425889,0.0831762,53497.0,53459.0,0.55430836]
[1725655425890,0.0831762,53495.0,53482.0,0.347]
[1725655426154,0.0831762,53495.0,53473.0,0.55593236]
[1725655426155,3.597645,53494.0,53473.0,0.55593236]
[1725655426399,0.2319,53489.0,53473.0,0.55593236]
[1725655426629,0.11073619,53475.0,53473.0,0.55593236]
[1725655426873,0.11073619,53475.0,53473.0,0.001624]
[1725655426874,2.74,53474.0,53473.0,0.001624]
[1725655427143,2.993,53474.0,53473.0,0.001624]
[1725655427395,3.02232879,53474.0,53473.0,0.001624]
[1725655427626,3.2629918,53474.0,53473.0,0.001624]
[1725655427866,3.2923226,53474.0,53473.0,0.001624]
[1725655428110,0.2138,53473.0,53452.0,0.55430836]
[1725655428348,0.31133568,53459.0,53452.0,0.55430836]
[1725655428581,0.31133568,53459.0,53458.0,0.33272]
[1725655428582,0.2699918,53459.0,53458.0,0.33272]
[1725655428838,1.303,53459.0,53458.0,0.00162]
[1725655429089,0.05524992,53464.0,53458.0,0.00162]
[1725655429090,0.05524992,53462.0,53458.0,0.00162]
[1725655429342,1.882,53461.0,53458.0,0.00162]
[1725655429594,1.839,53461.0,53458.0,0.00162]
[1725655429841,1.817,53460.0,53458.0,0.00162]
[1725655430072,0.266,53459.0,53458.0,0.00262]
[1725655430327,0.1,53459.0,53458.0,0.00162]
[1725655430801,0.1,53459.0,53458.0,0.00262]
[1725655431030,0.1,53459.0,53458.0,0.00162]
[1725655431502,0.008,53461.0,53458.0,0.00162]
[1725655431985,3.430745,53460.0,53451.0,0.932364]
[1725655432240,0.008,53461.0,53452.0,0.55430836]
[1725655432241,1.37524992,53459.0,53452.0,0.55430836]
[1725655432490,0.008,53461.0,53451.0,0.932364]
[1725655432741,1.729,53460.0,53458.0,0.001]
[1725655432977,2.421,53459.0,53458.0,0.001]
[1725655433205,0.007,53460.0,53451.0,0.932364]
[1725655433448,0.014,53460.0,53452.0,0.3477]
[1725655433673,0.007,53460.0,53452.0,0.3477]
[1725655433920,0.012,53460.0,53452.0,0.3477]
[1725655434169,0.005,53460.0,53452.0,0.3477]
[1725655434403,0.023,53459.0,53452.0,0.3477]
[1725655434904,0.009,53460.0,53452.0,0.3477]
[1725655435375,0.009,53460.0,53453.0,0.19544117]
[1725655435600,0.009,53460.0,53454.0,0.3477]
[1725655435880,0.009,53460.0,53455.0,0.00374089]
[1725655436105,0.05524992,53481.0,53455.0,0.00374089]
[1725655436347,0.2739283,53483.0,53454.0,0.3477]
[1725655436348,0.005,53460.0,53454.0,0.3477]
[1725655436832,0.005,53460.0,53455.0,0.00374088]
[1725655437058,0.005,53460.0,53454.0,0.3527]
[1725655437347,0.005,53460.0,53454.0,0.005]
[1725655437348,2.083,53459.0,53454.0,0.005]
[1725655437867,0.803,53458.0,53451.0,0.932364]
[1725655438088,1.988,53457.0,53451.0,0.932364]
[1725655438324,0.023,53458.0,53451.0,0.932364]
[1725655438325,1.578,53456.0,53451.0,0.932364]
[1725655438554,0.023,53458.0,53451.0,0.932364]
[1725655438555,2.287,53457.0,53451.0,0.932364]
[1725655438804,0.31,53456.0,53451.0,0.932364]
[1725655439050,0.1,53455.0,53451.0,0.932364]
[1725655439297,0.023,53458.0,53451.0,0.932364]
[1725655439546,3.407745,53457.0,53451.0,0.932364]
[1725655439803,0.123,53456.0,53451.0,0.932364]
[1725655440030,0.005,53457.0,53451.0,0.932364]
[1725655440266,0.002,53455.0,53451.0,0.932364]
[1725655440507,0.002,53455.0,53452.0,0.3543]
[1725655440774,0.1,53466.0,53452.0,0.3543]
[1725655441017,0.005,53457.0,53452.0,0.3543]
[1725655441238,0.005,53457.0,53453.0,0.1844]
[1725655442233,0.1915,53474.0,53453.0,0.1844]
[1725655442487,3.96205336,53473.0,53453.0,0.1844]
[1725655442725,0.002,53455.0,53453.0,0.1844]
[1725655442961,0.002,53455.0,53452.0,0.3543]
[1725655443201,0.002,53455.0,53451.0,0.784326]
[1725655443202,2.151,53454.0,53451.0,0.784326]
[1725655443426,2.151,53454.0,53451.0,0.757959]
[1725655443699,0.2138,53463.0,53451.0,0.00163]
[1725655443700,0.123,53453.0,53451.0,0.00163]
[1725655443972,0.123,53453.0,53445.0,0.00150885]
[1725655444266,3.621545,53452.0,53445.0,0.00150885]
[1725655444519,3.921645,53451.0,53445.0,0.00150885]
[1725655444792,3.621545,53450.0,53445.0,0.00150885]
[1725655445038,4.230745,53449.0,53445.0,0.00150885]
[1725655445273,3.407745,53448.0,53445.0,0.00150885]
[1725655445526,0.823,53449.0,53445.0,0.00150885]
[1725655445527,3.530745,53447.0,53445.0,0.00150885]
[1725655445754,3.407745,53446.0,53445.0,0.00150885]
[1725655445998,3.530745,53446.0,53445.0,0.00150885]
[1725655446258,4.230745,53446.0,53445.0,0.00150885]
[1725655446710,3.530745,53446.0,53445.0,0.00150885]
[1725655446937,3.58212205,53446.0,53445.0,0.00150885]
[1725655447433,3.936845,53446.0,53445.0,0.00150885]
[1725655448182,3.328495,53446.0,53445.0,0.00150885]
[1725655448434,1.184,53446.0,53445.0,0.00150885]
[1725655448662,0.31767266,53461.0,53445.0,0.00150885]
[1725655448663,0.2138,53461.0,53445.0,0.00150885]
[1725655448889,0.2138,53461.0,53446.0,0.3601]
[1725655448890,3.113195,53460.0,53446.0,0.3601]
[1725655451055,2.028,53459.0,53447.0,0.1946]
[1725655451305,0.311,53458.0,53447.0,0.1946]
[1725655451538,3.113195,53466.0,53447.0,0.1946]
[1725655452246,0.478,53467.0,53449.0,0.3601]
[1725655452486,3.113195,53466.0,53449.0,0.3601]
[1725655452738,2.628,53466.0,53449.0,0.3601]
[1725655452969,0.478,53467.0,53449.0,0.3601]
[1725655452970,0.833,53465.0,53449.0,0.3601]
[1725655453208,0.478,53467.0,53450.0,0.3601]
[1725655453477,0.9914,53475.0,53447.0,0.1946]
[1725655453478,0.18708,53453.0,53452.0,0.3601]
[1725655453707,0.478,53472.0,53454.0,0.1997]
[1725655453952,0.4065,53487.0,53455.0,0.35291055]
[1725655453953,0.000815,53458.0,53455.0,0.35291055]
[1725655454218,0.4065,53487.0,53458.0,0.1997]
[1725655454219,0.1927,53487.0,53458.0,0.1997]
[1725655454493,0.1927,53487.0,53455.0,0.01997]
[1725655454494,0.55430836,53480.0,53460.0,0.1997]
[1725655454730,0.1913,53494.0,53462.0,0.1997]
[1725655454731,0.74560836,53494.0,53462.0,0.1997]
[1725655454953,3.113195,53493.0,53463.0,0.3292]
[1725655455241,3.113195,53493.0,53465.0,0.3292]
[1725655455507,2.867496,53492.0,53465.0,0.3292]
[1725655455735,2.867496,53493.0,53465.0,0.3292]
[1725655456207,0.1,53492.0,53465.0,0.3292]
[1725655456431,2.890496,53491.0,53466.0,0.55430836]
[1725655456654,2.967496,53490.0,53467.0,0.43287724]
[1725655456891,2.890496,53489.0,53467.0,0.43287724]
[1725655457148,2.967496,53488.0,53468.0,0.3392]
[1725655457379,2.890496,53487.0,53468.0,0.3392]
[1725655457662,2.967496,53486.0,53468.0,0.3392]
[1725655457906,2.890496,53485.0,53468.0,0.3392]
[1725655458147,2.967496,53484.0,53468.0,0.3392]
[1725655458369,2.890496,53483.0,53468.0,0.3392]
[1725655458598,2.967496,53482.0,53468.0,0.3392]
[1725655458827,0.07253154,53482.0,53468.0,0.3392]
[1725655459523,2.704496,53481.0,53468.0,0.3392]
[1725655459977,0.478,53488.0,53468.0,0.3392]
[1725655460270,0.05137705,53480.0,53468.0,0.23162172]
[1725655460503,2.704496,53479.0,53468.0,0.23162172]
[1725655460742,2.704496,53482.0,53468.0,0.23162172]
[1725655460968,0.123,53481.0,53468.0,0.23162172]
[1725655461208,2.827496,53481.0,53468.0,0.23162172]
[1725655461444,2.018,53480.0,53468.0,0.23162172]
[1725655461695,2.211,53479.0,53468.0,0.23162172]
[1725655461946,0.123,53481.0,53468.0,0.23162172]
[1725655461947,0.1,53481.0,53468.0,0.23162172]
[1725655462196,0.1,53478.0,53468.0,0.23162172]
[1725655462434,0.1,53478.0,53469.0,0.00374016]
[1725655462661,0.18113944,53488.0,53470.0,0.1921]
[1725655462896,0.18113944,53488.0,53471.0,0.00373989]
[1725655463146,0.18113944,53488.0,53472.0,0.1921]
[1725655463416,0.18113944,53488.0,53464.0,0.01]
[1725655463417,0.18113944,53488.0,53473.0,0.361639]
[1725655463645,0.18113944,53488.0,53475.0,0.3579]
[1725655463869,0.18113944,53488.0,53478.0,0.1921]
[1725655464097,0.18113944,53488.0,53480.0,0.1921]
[1725655464326,0.18113944,53488.0,53483.0,0.1921]
[1725655464552,0.18113944,53488.0,53484.0,0.55]
[1725655464781,0.18113944,53488.0,53485.0,0.3579]
[1725655465009,0.18113944,53488.0,53487.0,0.3393]
[1725655466519,0.28113944,53488.0,53487.0,0.3393]
[1725655470532,0.28113944,53488.0,53487.0,0.34303897]
[1725655470758,0.000815,53493.0,53488.0,0.1874]
[1725655471012,0.000815,53493.0,53480.0,0.373971]
[1725655471013,0.000815,53493.0,53491.0,0.1874]
[1725655471244,0.000815,53493.0,53492.0,0.00373742]
[1725655471975,0.000815,53493.0,53492.0,0.00273742]
[1725655472485,0.000815,53511.0,53493.0,0.1866]
[1725655472701,0.000815,53511.0,53487.0,0.009]
[1725655472702,0.000815,53511.0,53495.0,0.1866]
[1725655472925,0.000815,53511.0,53497.0,0.1874]
[1725655473173,0.000815,53511.0,53496.0,0.02167093]
[1725655473174,0.000815,53511.0,53499.0,0.1874]
[1725655473395,0.000815,53511.0,53501.0,0.01]
[1725655473650,0.000815,53511.0,53502.0,0.19233656]
[1725655474124,0.000815,53511.0,53503.0,0.334]
[1725655474401,0.000815,53511.0,53505.0,0.5226]
[1725655474638,0.000815,53511.0,53507.0,0.5254]
[1725655474890,0.000815,53511.0,53509.0,0.3283]
[1725655475130,0.000815,53511.0,53510.0,0.33203647]
[1725655475614,0.000815,53511.0,53510.0,0.3283]
[1725655476583,0.000815,53511.0,53510.0,0.36563599]
[1725655476790,0.000815,53511.0,53510.0,0.36189888]
[1725655477026,0.000815,53511.0,53510.0,0.36389888]
[1725655477490,0.000815,53511.0,53510.0,0.36189888]
[1725655477947,0.000815,53511.0,53510.0,0.36989888]
[1725655478462,0.000815,53511.0,53510.0,0.3363]
[1725655479389,0.000815,53511.0,53510.0,0.34003686]
[1725655479629,0.000815,53511.0,53510.0,0.3363]
[1725655479871,0.000815,53511.0,53510.0,0.3283]
[1725655480101,0.000815,53511.0,53510.0,0.3363]
[1725655480331,0.1,53529.0,53510.0,0.3363]
[1725655480332,0.08565495,53529.0,53510.0,0.3363]
[1725655480555,0.3308,53527.0,53510.0,0.3283]
[1725655480882,3.28180436,53528.0,53510.0,0.3283]
[1725655480883,0.167,53526.0,53510.0,0.3283]
[1725655481104,0.08565495,53529.0,53511.0,0.05254]
[1725655481799,2.727496,53528.0,53510.0,0.3293]
[1725655482018,2.704496,53527.0,53510.0,0.3293]
[1725655482243,2.423,53526.0,53510.0,0.3293]
[1725655482462,0.164,53525.0,53510.0,0.3293]
[1725655482687,0.231,53524.0,53511.0,0.05264]
[1725655482923,0.08565495,53529.0,53511.0,0.05264]
[1725655483138,0.339,53528.0,53511.0,0.05264]
[1725655483359,0.1,53527.0,53511.0,0.05364]
[1725655483604,0.08565495,53529.0,53512.0,0.3267]
[1725655484257,0.478,53530.0,53514.0,0.3441]
[1725655484477,0.478,53530.0,53515.0,0.00373645]
[1725655484724,0.478,53530.0,53517.0,0.3407]
[1725655484941,0.478,53530.0,53518.0,0.34443614]
[1725655485158,0.478,53530.0,53519.0,0.39335361]
[1725655485597,0.1,53529.0,53519.0,0.39335361]
[1725655486301,0.1,53529.0,53519.0,0.3407]
[1725655486729,0.1,53529.0,53519.0,0.34055784]
[1725655487417,0.1,53529.0,53519.0,0.34355784]
[1725655487888,0.1,53529.0,53520.0,0.00373656]
[1725655488948,0.1,53529.0,53516.0,0.1821]
[1725655488949,0.1,53529.0,53517.0,0.0037364]
[1725655489232,0.1,53529.0,53516.0,0.1821]
[1725655489233,0.1,53529.0,53518.0,0.01858364]
[1725655489644,0.1,53529.0,53519.0,0.3407]
[1725655490109,0.478,53537.0,53519.0,0.3407]
[1725655490110,0.1,53536.0,53519.0,0.3407]
[1725655490612,0.18594,53542.0,53532.0,0.55430836]
[1725655490613,0.00014,53542.0,53532.0,0.55430836]
[1725655490845,0.00014,53542.0,53533.0,0.3407]
[1725655491066,0.00014,53542.0,53532.0,0.1821]
[1725655491067,0.00014,53542.0,53534.0,0.00373464]
[1725655491315,0.18679,53536.0,53535.0,0.3407]
[1725655491541,0.18679,53536.0,53535.0,0.5307]
[1725655491777,0.18679,53536.0,53535.0,0.6418029]
[1725655493768,0.18679,53536.0,53535.0,0.6558029]
[1725655493980,0.1968,53561.0,53536.0,0.3422]
[1725655493981,0.186786,53537.0,53536.0,0.3422]
[1725655495369,0.286786,53537.0,53536.0,0.3422]
[1725655495814,0.286786,53537.0,53536.0,0.922529]
[1725655496502,0.286786,53537.0,53536.0,0.936529]
[1725655496980,0.286786,53537.0,53536.0,0.922529]
[1725655497202,0.286786,53537.0,53536.0,0.936529]
[1725655497203,0.186786,53537.0,53536.0,0.936529]
[1725655497690,0.186786,53537.0,53536.0,0.922529]
[1725655497874,0.186786,53537.0,53536.0,0.936529]
[1725655497875,0.560359,53537.0,53536.0,0.936529]
[1725655498099,0.560359,53537.0,53536.0,1.0491819]
[1725655498326,0.933932,53537.0,53536.0,1.0491819]
[1725655498997,0.933932,53537.0,53536.0,0.936529]
[1725655499227,0.933932,53537.0,53536.0,0.922529]
[1725655499455,0.933932,53537.0,53536.0,0.936529]
[1725655499927,0.933932,53537.0,53536.0,0.922529]
[1725655500604,0.933932,53537.0,53536.0,0.936529]
[1725655501067,1.407505,53537.0,53536.0,0.936529]
[1725655501298,1.781078,53537.0,53536.0,0.580329]
[1725655501824,2.154651,53537.0,53536.0,0.580329]
[1725655502065,1.781078,53537.0,53536.0,0.580329]
[1725655502293,1.781078,53537.0,53536.0,1.1822619]
[1725655502294,1.033932,53537.0,53536.0,1.1822619]
[1725655502526,1.033932,53537.0,53536.0,0.928029]
[1725655502794,1.033932,53537.0,53536.0,0.942029]
[1725655502795,1.407505,53537.0,53536.0,0.942029]
[1725655503240,1.781078,53537.0,53536.0,0.928029]
[1725655503936,1.781078,53537.0,53536.0,0.937029]
[1725655504407,1.307505,53537.0,53536.0,0.929657]
[1725655504891,0.933932,53537.0,53536.0,0.929657]
[1725655505120,0.933932,53537.0,53536.0,1.0422427]
[1725655505581,1.307505,53537.0,53536.0,1.0512427]
[1725655505809,1.307505,53537.0,53536.0,0.938657]
[1725655506032,1.307505,53537.0,53536.0,0.929657]
[1725655506259,1.681078,53537.0,53536.0,0.929657]
[1725655506518,1.307505,53537.0,53536.0,1.0562427]
[1725655506731,1.681078,53537.0,53536.0,1.0562427]
[1725655506955,1.681078,53537.0,53536.0,0.929657]
[1725655507176,1.307505,53537.0,53536.0,0.941657]
[1725655507399,0.37345,53555.0,53537.0,0.3558]
[1725655507628,0.37345,53555.0,53538.0,0.00373429]
[1725655507861,0.186776,53540.0,53539.0,0.5466]
[1725655508082,0.22136892,53581.0,53545.0,0.01]
[1725655508316,0.00081,53581.0,53574.0,0.580329]
[1725655508782,2.704496,53580.0,53574.0,0.580329]
[1725655509929,0.02866993,53579.0,53574.0,0.581329]
[1725655510145,2.704496,53578.0,53574.0,0.581329]
[1725655510374,2.704496,53578.0,53574.0,0.580329]
[1725655510626,2.708496,53580.0,53574.0,0.581329]
[1725655510850,2.75494522,53579.0,53574.0,0.581329]
[1725655511071,0.4866,53577.0,53574.0,0.581329]
[1725655511300,2.727496,53576.0,53574.0,0.581329]
[1725655511522,2.704496,53575.0,53574.0,0.581329]
[1725655511764,2.727496,53575.0,53574.0,0.581329]
[1725655512219,3.34252068,53575.0,53574.0,0.581329]
[1725655512448,3.34252068,53575.0,53574.0,0.580329]
[1725655512449,3.37179721,53575.0,53574.0,0.580329]
[1725655512672,3.39786026,53575.0,53574.0,0.581329]
[1725655512896,3.289896,53575.0,53574.0,0.581329]
[1725655513124,3.289896,53575.0,53574.0,0.580329]
[1725655513567,2.896596,53575.0,53574.0,0.581329]
[1725655514002,2.896596,53575.0,53574.0,0.580329]
[1725655514223,2.896596,53575.0,53574.0,0.581329]
[1725655514658,2.704496,53575.0,53574.0,0.581329]
[1725655514905,2.704496,53578.0,53574.0,0.581329]
[1725655515363,0.123,53577.0,53574.0,0.580329]
[1725655515590,2.704496,53576.0,53574.0,0.580329]
[1725655515812,0.126,53575.0,53574.0,0.580329]
[1725655516034,2.830496,53575.0,53574.0,0.580329]
[1725655516276,2.827496,53575.0,53574.0,0.580329]
[1725655516495,2.88283558,53575.0,53574.0,0.581329]
[1725655516717,2.827496,53575.0,53574.0,0.581329]
[1725655517179,2.827496,53575.0,53574.0,0.580329]
[1725655517184,2.82831,53575.0,53574.0,0.580329]
[1725655517405,2.83031,53575.0,53574.0,0.580329]
[1725655517633,2.80731,53575.0,53574.0,0.580329]
[1725655518146,2.83907823,53575.0,53574.0,0.580329]
[1725655518397,2.89380896,53575.0,53574.0,0.580329]
[1725655519071,2.89180896,53575.0,53574.0,0.580329]
[1725655519304,0.18731296,53575.0,53574.0,0.580329]
[1725655519545,2.81031,53575.0,53574.0,0.581329]
[1725655519789,2.84207823,53575.0,53574.0,0.580329]
[1725655520052,2.83707823,53575.0,53574.0,0.580329]
[1725655520288,2.8934001,53575.0,53574.0,0.580329]
[1725655520508,2.84007823,53575.0,53574.0,0.580329]
[1725655520763,2.83707823,53575.0,53574.0,0.580329]
[1725655521037,2.83907823,53575.0,53574.0,0.580329]
[1725655522243,2.89001872,53575.0,53574.0,0.580329]
[1725655522479,2.92128855,53575.0,53574.0,0.580329]
[1725655522942,2.94228855,53575.0,53574.0,0.580329]
[1725655523430,3.00077602,53575.0,53574.0,0.580329]
[1725655523683,3.0284601,53575.0,53574.0,0.580329]
[1725655523925,3.0254601,53575.0,53574.0,0.580329]
[1725655524161,3.05818395,53575.0,53574.0,0.581329]
[1725655524386,3.0859078,53575.0,53574.0,0.581329]
[1725655524612,2.94728855,53575.0,53574.0,0.581329]
[1725655525299,2.94228855,53575.0,53574.0,0.580329]
[1725655525541,3.05919218,53575.0,53574.0,0.580329]
[1725655525997,2.94228855,53575.0,53574.0,0.580329]
[1725655526210,3.08088098,53575.0,53574.0,0.580329]
[1725655526452,2.95528855,53575.0,53574.0,0.580329]
[1725655526698,3.09394672,53575.0,53574.0,0.580329]
[1725655526930,2.94228855,53575.0,53574.0,0.580329]
[1725655527211,3.08093854,53575.0,53574.0,0.580329]
[1725655527460,2.94228855,53575.0,53574.0,0.580329]
[1725655527697,3.60453166,53575.0,53574.0,0.580329]
[1725655527945,3.65607994,53575.0,53574.0,0.131229]
[1725655528205,3.66607994,53575.0,53574.0,0.131229]
[1725655528430,4.5512249,53575.0,53574.0,0.131229]
[1725655528668,4.85005982,53575.0,53574.0,0.131229]
[1725655528889,4.85005982,53575.0,53574.0,0.08433319]
[1725655529114,4.84805982,53575.0,53574.0,0.08433319]
[1725655529337,4.71151979,53575.0,53574.0,0.08433319]
[1725655529564,4.62431482,53575.0,53574.0,0.08433319]
[1725655529848,4.04137433,53575.0,53574.0,0.08433319]
[1725655530073,4.05537433,53575.0,53574.0,0.08433319]
[1725655530298,4.0236061,53575.0,53574.0,0.08433319]
[1725655530523,4.0096061,53575.0,53574.0,0.08433319]
[1725655530743,4.0236061,53575.0,53574.0,0.08433319]
[1725655530991,4.0336061,53575.0,53574.0,0.08433319]
[1725655531220,4.07446549,53575.0,53574.0,0.08433319]
[1725655531439,4.13114446,53575.0,53574.0,0.08433319]
[1725655531681,0.022,53572.0,53571.0,0.00022471]
[1725655531903,2.86413483,53572.0,53571.0,0.00022471]
[1725655532142,2.86413483,53572.0,53568.0,0.001628]
[1725655532143,0.012,53569.0,53568.0,0.001628]
[1725655532615,2.814865,53569.0,53568.0,0.471128]
[1725655532620,2.84697404,53569.0,53568.0,0.471128]
[1725655532849,3.66108415,53569.0,53568.0,0.471128]
[1725655533089,3.6534239,53569.0,53568.0,0.471128]
[1725655533343,3.80615548,53569.0,53568.0,0.471128]
[1725655533564,3.61874493,53569.0,53568.0,0.471128]
[1725655533796,3.67969751,53569.0,53568.0,0.471128]
[1725655534013,3.61874493,53569.0,53568.0,0.471128]
[1725655534240,3.69376755,53569.0,53568.0,0.471128]
[1725655534480,3.69376755,53569.0,53568.0,0.4695]
[1725655534707,3.69376755,53569.0,53535.0,0.55430836]
[1725655534708,0.012,53552.0,53535.0,0.55430836]
[1725655534933,0.02,53557.0,53536.0,0.109928]
[1725655534934,0.13889972,53537.0,53536.0,0.109928]
[1725655535166,0.01388997,53537.0,53536.0,0.109928]
[1725655535413,0.27494079,53537.0,53536.0,0.109928]
[1725655535647,0.37494079,53537.0,53536.0,0.109928]
[1725655535871,0.39342354,53537.0,53536.0,0.109928]
[1725655536377,0.20184764,53537.0,53536.0,0.109928]
[1725655536623,0.32048275,53537.0,53536.0,0.109928]
[1725655536848,0.71179009,53537.0,53536.0,0.109928]
[1725655537096,0.71163096,53537.0,53536.0,0.109928]
[1725655537321,0.72163096,53537.0,53536.0,0.109928]
[1725655537776,0.71363096,53537.0,53536.0,0.109928]
[1725655537995,0.71563096,53537.0,53536.0,0.109928]
[1725655538223,0.71763096,53537.0,53536.0,0.109928]
[1725655538463,0.71020134,53537.0,53536.0,0.109928]
[1725655538704,0.70820134,53537.0,53536.0,0.109928]
[1725655538970,0.33432362,53537.0,53536.0,0.109928]
[1725655539203,0.31140166,53537.0,53536.0,0.109928]
[1725655539435,0.46229206,53537.0,53536.0,0.109928]
[1725655539695,0.47629206,53537.0,53536.0,0.109928]
[1725655539928,2.77894168,53537.0,53536.0,0.109928]
[1725655540273,1.09524953,53537.0,53536.0,0.109928]
[1725655540492,0.99837668,53537.0,53536.0,0.109928]
[1725655540713,1.00637668,53537.0,53536.0,0.109928]
[1725655540938,0.99237668,53537.0,53536.0,0.109928]
[1725655541181,1.10324148,53537.0,53536.0,0.109928]
[1725655541398,1.11724148,53537.0,53536.0,0.109928]
[1725655542499,1.00637668,53537.0,53536.0,0.109928]
[1725655542774,0.99237668,53537.0,53536.0,0.109928]
[1725655543010,0.82458287,53537.0,53536.0,0.109928]
[1725655543458,0.81058287,53537.0,53536.0,0.109928]
[1725655543670,0.72748628,53537.0,53536.0,0.109928]
[1725655543914,0.74148628,53537.0,53536.0,0.109928]
[1725655544164,0.81058287,53537.0,53536.0,0.109928]
[1725655544641,1.1306854,53537.0,53536.0,0.1083]
[1725655544864,0.186793,53535.0,53534.0,0.20487521]
[1725655545089,2.768358,53535.0,53534.0,0.20487521]
[1725655545310,2.86728986,53535.0,53534.0,0.20487521]
[1725655545577,0.61771538,53535.0,53534.0,0.20487521]
[1725655546296,0.35801923,53535.0,53534.0,0.20487521]